bitfinex-derivatives/quotes_SOLF0:USTF0_20250110
["timestamp","ask_amount","ask_price","bid_price","bid_amount"]
[1736517141710,5.6497,185.93,185.78,2.8022]
[1736517142118,2.69,185.89,185.84,2.6906]
[1736517142306,5.6497,185.93,185.78,2.8022]
[1736517143207,2.6902,185.87,185.82,2.6909]
[1736517143416,5.6497,185.93,185.78,2.8022]
[1736517143617,31.95061864,185.89,185.78,2.8022]
[1736517144010,5.6497,185.93,185.79,31.95061864]
[1736517144315,2.9101,185.96,185.82,31.95061864]
[1736517144518,34.86071864,185.96,185.82,31.95061864]
[1736517144914,5.6574,185.98,185.95,2.6889]
[1736517145119,31.95061864,186.03,185.85,31.95061864]
[1736517145312,31.95061864,186.03,185.81,7.64]
[1736517145313,31.95061864,186.03,185.88,31.95061864]
[1736517145508,31.95061864,186.06,185.89,2.9061]
[1736517146519,31.95061864,186.09,185.91,31.95061864]
[1736517146715,8.4252,186.11,185.97,31.95061864]
[1736517147018,8.4252,186.11,186.0,31.95061864]
[1736517147219,5.6774,186.11,186.0,31.95061864]
[1736517147608,2.7678,186.11,186.0,31.95061864]
[1736517147808,2.8854,186.16,186.04,2.6876]
[1736517148016,2.7852,186.15,186.0,31.95061864]
[1736517148316,2.6883,186.0,185.94,2.6891]
[1736517148512,31.95061864,186.05,185.88,31.95061864]
[1736517148713,2.6884,186.0,185.93,2.6893]
[1736517148920,8.5409,186.04,185.88,31.95061864]
[1736517149124,8.5409,186.04,185.91,31.95061864]
[1736517149419,7.64,186.06,185.94,31.95061864]
[1736517149817,31.95061864,186.12,185.94,31.95061864]
[1736517150021,39.59061864,186.15,186.0,31.95061864]
[1736517150508,2.6867,186.11,186.05,2.6874]
[1736517150909,39.59061864,186.15,185.97,31.95061864]
[1736517151118,31.95061864,186.18,186.0,31.95061864]
[1736517151311,31.95061864,186.18,186.03,31.95061864]
[1736517151615,8.5409,186.19,186.03,31.95061864]
[1736517151819,8.5409,186.19,186.01,2.9729]
[1736517151820,8.5409,186.19,186.06,31.95061864]
[1736517152021,2.6859,186.17,186.11,2.6867]
[1736517152224,8.5409,186.19,186.06,31.95061864]
[1736517153126,2.6862,186.15,186.09,2.687]
[1736517153423,8.5409,186.19,186.03,31.95061864]
[1736517153821,31.95061864,186.18,186.03,31.95061864]
[1736517154019,31.95061864,186.15,186.01,86.8729]
[1736517154229,8.5409,186.19,186.03,31.95061864]
[1736517154526,8.5409,186.19,186.06,31.95061864]
[1736517154818,83.17869957,186.29,186.12,31.95061864]
[1736517155026,88.83499957,186.29,186.15,31.95061864]
[1736517155420,5.6563,186.29,186.13,2.9623]
[1736517155622,2.9095,186.29,186.21,31.95061864]
[1736517155916,83.17869957,186.35,186.24,31.95061864]
[1736517156124,137.5695826,186.37,186.24,31.95061864]
[1736517156631,137.5695826,186.37,186.28,2.6842]
[1736517156831,8.4098,186.39,186.24,31.95061864]
[1736517157326,31.95061864,186.38,186.21,31.95061864]
[1736517157827,31.95061864,186.29,186.13,2.9623]
[1736517158024,31.95061864,186.26,186.09,31.95061864]
[1736517158224,2.6854,186.2,186.09,31.95061864]
[1736517158423,31.95061864,186.26,186.09,31.95061864]
[1736517158725,2.6849,186.24,186.17,2.6858]
[1736517158924,8.6016,186.28,186.15,31.95061864]
[1736517159924,8.6016,186.28,186.12,31.95061864]
[1736517160835,2.6847,186.25,186.18,2.6856]
[1736517161032,8.6016,186.28,186.15,31.95061864]
[1736517161326,31.95061864,186.35,186.18,31.95061864]
[1736517161532,31.95061864,186.32,186.19,2.8685]
[1736517161729,31.95061864,186.35,186.19,2.8685]
[1736517162430,8.5297,186.36,186.21,31.95061864]
[1736517162630,2.6833,186.35,186.27,2.6843]
[1736517162832,8.5297,186.36,186.21,31.95061864]
[1736517163226,8.5297,186.36,186.19,2.8685]
[1736517163227,31.95061864,186.35,186.19,2.8685]
[1736517163928,2.6836,186.33,186.25,2.6846]
[1736517164632,31.95061864,186.35,186.27,2.6843]
[1736517164830,31.95061864,186.35,186.19,2.8685]
[1736517165226,8.5297,186.36,186.21,31.95061864]
[1736517165535,8.5297,186.36,186.24,31.95061864]
[1736517166028,2.6835,186.33,186.21,31.95061864]
[1736517166230,8.5297,186.36,186.26,2.6845]
[1736517166438,31.95061864,186.35,186.19,2.8685]
[1736517167030,2.6838,186.31,186.15,31.95061864]
[1736517167230,8.5297,186.36,186.03,31.95061864]
[1736517167231,31.95061864,186.29,186.12,31.95061864]
[1736517167534,31.95061864,186.29,186.19,2.6855]
[1736517167735,2.6845,186.26,186.19,2.6855]
[1736517168233,2.6845,186.26,186.09,31.95061864]
[1736517168234,31.95061864,186.26,186.09,31.95061864]
[1736517168426,31.95061864,186.3,186.06,8.484]
[1736517168427,31.95061864,186.23,186.06,40.43461864]
[1736517168830,8.5557,186.25,186.09,31.95061864]
[1736517169025,5.551,186.25,186.14,31.95061864]
[1736517169229,34.95531864,186.34,186.24,2.6847]
[1736517169534,40.50631864,186.34,186.17,31.95061864]
[1736517169830,2.6843,186.28,186.22,2.6851]
[1736517170034,8.5557,186.34,186.2,31.95061864]
[1736517170633,31.95061864,186.33,186.17,31.95061864]
[1736517170836,8.5557,186.34,186.2,31.95061864]
[1736517171532,8.5557,186.34,186.23,31.95061864]
[1736517171729,2.7896,186.41,186.24,2.9377]
[1736517171930,2.6831,186.36,186.31,2.6837]
[1736517172229,2.6831,186.36,186.26,31.95061864]
[1736517172434,8.3313,186.41,186.26,31.95061864]
[1736517172639,2.6832,186.36,186.3,2.6839]
[1736517172833,8.3313,186.41,186.26,31.95061864]
[1736517173335,8.3313,186.41,186.33,2.6834]
[1736517174239,11.0138,186.41,186.35,2.6832]
[1736517174640,2.6819,186.45,186.39,2.6826]
[1736517174834,31.95061864,186.52,186.35,31.95061864]
[1736517175032,31.95061864,186.52,186.36,3.004]
[1736517175237,37.68931864,186.54,186.44,2.6819]
[1736517175536,37.68931864,186.54,186.38,31.95061864]
[1736517175730,2.6808,186.52,186.46,2.6816]
[1736517175935,37.68931864,186.54,186.38,31.95061864]
[1736517176336,37.68931864,186.54,186.33,5.8424]
[1736517176337,31.95061864,186.51,186.33,5.8424]
[1736517176536,31.95061864,186.48,186.33,5.8424]
[1736517176729,2.6821,186.43,186.36,2.6829]
[1736517176930,31.95061864,186.48,186.33,5.8424]
[1736517177141,31.95061864,186.48,186.29,31.95061864]
[1736517177336,7.6,186.49,186.26,10.604]
[1736517177337,31.95061864,186.45,186.26,10.604]
[1736517177536,31.95061864,186.42,186.26,42.55461864]
[1736517177743,5.7455,186.44,186.26,42.55461864]
[1736517177947,2.6824,186.41,186.34,2.6833]
[1736517178333,2.6829,186.38,186.3,2.6838]
[1736517178537,31.95061864,186.42,186.26,42.55461864]
[1736517178737,31.95061864,186.42,186.22,5.6489]
[1736517178943,31.95061864,186.39,186.28,2.6842]
[1736517179141,31.95061864,186.39,186.22,8.6402]
[1736517179445,2.6836,186.33,186.25,2.6846]
[1736517179645,31.95061864,186.33,186.19,83.78]
[1736517180145,2.6837,186.32,186.24,2.6847]
[1736517180344,31.95061864,186.33,186.19,83.78]
[1736517180643,31.95061864,186.3,186.19,83.78]
[1736517180847,5.8776,186.32,186.19,83.78]
[1736517181036,5.8776,186.32,186.28,2.6842]
[1736517181237,31.95061864,186.39,186.21,31.95061864]
[1736517181543,5.8776,186.38,186.21,31.95061864]
[1736517181741,31.95061864,186.33,186.19,83.78]
[1736517182139,2.6841,186.3,186.22,2.6851]
[1736517182448,2.9903,186.32,186.19,83.78]
[1736517182745,5.8776,186.38,186.24,31.95061864]
[1736517182949,5.8776,186.38,186.27,31.95061864]
[1736517183142,2.6823,186.42,186.32,2.6836]
[1736517183337,6.0136,186.44,186.3,31.95061864]
[1736517183543,6.0136,186.44,186.33,31.95061864]
[1736517183743,6.0136,186.44,186.19,83.78]
[1736517184048,31.95061864,186.39,186.22,31.95061864]
[1736517184246,2.6832,186.35,186.29,2.6839]
[1736517184443,31.95061864,186.36,186.22,31.95061864]
[1736517184648,31.95061864,186.36,186.2,2.8466]
[1736517184948,5.7406,186.35,186.22,31.95061864]
[1736517185148,31.95061864,186.42,186.26,31.95061864]
[1736517185337,2.8437,186.41,186.26,31.95061864]
[1736517185543,2.8437,186.41,186.22,31.95061864]
[1736517185949,2.6829,186.38,186.32,2.6836]
[1736517186154,2.8437,186.41,186.28,31.95061864]
[1736517186547,2.8437,186.41,186.22,39.53061864]
[1736517186548,2.6831,186.36,186.25,31.95061864]
[1736517186852,2.8437,186.41,186.25,31.95061864]
[1736517187055,2.8437,186.41,186.28,31.95061864]
[1736517188054,2.8437,186.41,186.36,2.683]
[1736517188256,2.8437,186.41,186.29,2.806]
[1736517188653,2.6827,186.39,186.32,2.6836]
[1736517188855,2.8437,186.41,186.29,2.806]
[1736517189352,2.8969,186.43,186.31,31.95061864]
[1736517189558,39.53061864,186.49,186.31,31.95061864]
[1736517189757,2.6816,186.47,186.42,2.6821]
[1736517190055,31.95061864,186.52,186.37,31.95061864]
[1736517190350,40.32831864,186.55,186.37,31.95061864]
[1736517190556,31.95061864,186.52,186.34,31.95061864]
[1736517190754,2.6818,186.46,186.39,2.6825]
[1736517190957,31.95061864,186.49,186.34,31.95061864]
[1736517191858,2.6819,186.45,186.39,2.6826]
[1736517192054,2.6819,186.45,186.31,31.95061864]
[1736517192055,31.95061864,186.49,186.31,31.95061864]
[1736517192257,31.95061864,186.46,186.3,5.8854]
[1736517192457,7.58,186.54,186.29,2.806]
[1736517192458,2.7819,186.45,186.29,2.806]
[1736517192657,13.1287,186.44,186.31,31.95061864]
[1736517192859,31.95061864,186.51,186.34,31.95061864]
[1736517193057,8.5475,186.53,186.34,31.95061864]
[1736517193253,31.95061864,186.48,186.34,31.95061864]
[1736517193556,31.95061864,186.48,186.3,31.95061864]
[1736517193960,2.6823,186.42,186.36,2.6829]
[1736517194257,31.95061864,186.45,186.29,2.806]
[1736517194463,2.6825,186.41,186.33,2.6834]
[1736517194662,2.6825,186.41,186.29,2.806]
[1736517194663,31.95061864,186.45,186.29,2.806]
[1736517194861,5.5487,186.53,186.34,31.95061864]
[1736517195059,2.6811,186.5,186.44,2.6819]
[1736517195259,2.9988,186.52,186.38,2.8019]
[1736517195460,2.9988,186.52,186.4,31.95061864]
[1736517196168,5.6796,186.52,186.47,2.6814]
[1736517196366,5.5487,186.53,186.4,31.95061864]
[1736517196763,8.2293,186.53,186.4,31.95061864]
[1736517196964,5.5487,186.53,186.4,31.95061864]
[1736517198559,5.5487,186.53,186.38,2.8019]
[1736517198768,2.6812,186.49,186.45,2.6817]
[1736517199063,5.5487,186.53,186.38,2.8019]
[1736517199261,2.6812,186.5,186.45,2.6816]
[1736517199467,5.5487,186.53,186.4,31.95061864]
[1736517199662,34.88351864,186.58,186.43,31.95061864]
[1736517199868,2.9329,186.58,186.46,31.95061864]
[1736517200169,5.7797,186.63,186.49,31.95061864]
[1736517200368,5.7797,186.63,186.52,31.95061864]
[1736517200871,83.25359226,186.65,186.52,31.95061864]
[1736517201471,31.95061864,186.67,186.5,2.8826]
[1736517201662,5.7797,186.7,186.5,2.8826]
[1736517201663,2.6802,186.56,186.5,2.6809]
[1736517201870,31.95061864,186.64,186.46,31.95061864]
[1736517202167,31.95061864,186.61,186.46,31.95061864]
[1736517202368,2.9005,186.6,186.46,31.95061864]
[1736517202770,2.6798,186.59,186.53,2.6806]
[1736517202971,2.9005,186.6,186.46,31.95061864]
[1736517203172,5.7797,186.7,186.45,2.8826]
[1736517203173,31.95061864,186.67,186.49,31.95061864]
[1736517203375,31.95061864,186.67,186.52,31.95061864]
[1736517203873,2.6788,186.66,186.52,31.95061864]
[1736517204077,2.6788,186.66,186.55,31.95061864]
[1736517204264,2.9005,186.69,186.55,31.95061864]
[1736517204466,2.6791,186.64,186.52,31.95061864]
[1736517204669,2.9005,186.69,186.52,31.95061864]
[1736517205374,2.6788,186.67,186.62,2.6793]
[1736517205768,2.9005,186.69,186.55,31.95061864]
[1736517205970,2.9005,186.69,186.54,2.9693]
[1736517205971,31.95061864,186.67,186.48,31.95061864]
[1736517206169,2.9005,186.69,186.48,31.95061864]
[1736517206170,31.95061864,186.64,186.49,2.9693]
[1736517206371,31.95061864,186.61,186.49,2.9693]
[1736517206573,2.68,186.57,186.52,2.6808]
[1736517206775,31.95061864,186.61,186.49,2.9693]
[1736517206972,31.95061864,186.58,186.45,2.8503]
[1736517207274,5.5839,186.57,186.42,31.95061864]
[1736517207869,2.8795,186.6,186.45,31.95061864]
[1736517208072,2.8795,186.6,186.58,2.6799]
[1736517208276,5.712,186.65,186.48,31.95061864]
[1736517208475,8.6956,186.65,186.51,31.95061864]
[1736517208678,8.6956,186.65,186.56,2.6802]
[1736517208980,8.6956,186.65,186.49,2.731]
[1736517209380,8.6956,186.65,186.51,31.95061864]
[1736517209581,8.6956,186.65,186.6,2.6796]
[1736517209778,8.6956,186.65,186.51,31.95061864]
[1736517210275,8.6956,186.65,186.59,2.6796]
[1736517210581,8.6956,186.65,186.51,31.95061864]
[1736517210778,31.95061864,186.72,186.57,31.95061864]
[1736517210979,166.95359226,186.79,186.5,2.828]
[1736517210980,8.7264,186.74,186.6,31.95061864]
[1736517211185,11.4041,186.74,186.64,2.679]
[1736517211484,8.7264,186.74,186.6,31.95061864]
[1736517211878,8.7264,186.74,186.67,2.6785]
[1736517212272,2.6781,186.71,186.65,2.6788]
[1736517212475,31.95061864,186.72,186.58,5.7268]
[1736517213273,8.7264,186.74,186.6,31.95061864]
[1736517213675,2.9841,186.74,186.6,31.95061864]
[1736517213878,2.9841,186.74,186.63,31.95061864]
[1736517214682,5.6524,186.83,186.66,31.95061864]
[1736517214873,5.6524,186.83,186.58,5.7268]
[1736517214874,5.6524,186.83,186.69,31.95061864]
[1736517215070,5.6524,186.83,186.76,2.6773]
[1736517215071,2.6767,186.81,186.76,2.6773]
[1736517215276,5.6524,186.83,186.69,31.95061864]
[1736517215476,5.6524,186.83,186.67,2.8407]
[1736517215477,31.95061864,186.82,186.67,2.8407]
[1736517215682,31.95061864,186.82,186.7,2.6781]
[1736517215977,31.95061864,186.76,186.6,31.95061864]
[1736517216173,5.6524,186.83,186.58,2.8903]
[1736517216174,31.95061864,186.73,186.58,2.8903]
[1736517216377,2.731,186.75,186.6,31.95061864]
[1736517217384,31.95061864,186.73,186.58,2.8903]
[1736517217686,31.95061864,186.7,186.57,2.8407]
[1736517217883,31.95061864,186.7,186.56,5.3799968]
[1736517218784,31.95061864,186.67,186.56,5.3799968]
[1736517218987,2.7821,186.66,186.56,5.3799968]
[1736517219183,31.95061864,186.64,186.56,5.3799968]
[1736517219486,31.95061864,186.61,186.45,31.95061864]
[1736517219685,31.95061864,186.61,186.44,5.7752]
[1736517219686,31.95061864,186.58,186.44,5.7752]
[1736517219883,31.95061864,186.58,186.44,2.8266]
[1736517220280,31.95061864,186.58,186.43,83.62]
[1736517220481,31.95061864,186.55,186.39,31.95061864]
[1736517220679,2.7617,186.54,186.39,31.95061864]
[1736517220882,2.7617,186.54,186.35,5.693]
[1736517220883,2.7617,186.54,186.36,31.95061864]
[1736517221386,2.7617,186.54,186.39,31.95061864]
[1736517221587,2.7617,186.54,186.36,31.95061864]
[1736517221588,31.95061864,186.52,186.36,31.95061864]
[1736517221980,2.6816,186.47,186.4,2.6824]
[1736517222179,31.95061864,186.52,186.36,31.95061864]
[1736517222580,31.95061864,186.52,186.35,5.693]
[1736517222782,31.95061864,186.49,186.35,5.693]
[1736517223185,2.7617,186.54,186.36,31.95061864]
[1736517223385,2.7617,186.54,186.39,31.95061864]
[1736517223789,2.6809,186.52,186.44,2.6819]
[1736517224188,2.7617,186.54,186.39,31.95061864]
[1736517224692,5.7216,186.6,186.45,31.95061864]
[1736517224884,2.9787,186.63,186.57,2.68]
[1736517225087,2.9787,186.63,186.51,31.95061864]
[1736517225688,83.25359226,186.68,186.51,31.95061864]
[1736517225888,39.51061864,186.7,186.63,2.6791]
[1736517225889,34.92931864,186.7,186.63,2.6791]
[1736517226187,34.92931864,186.7,186.48,31.95061864]
[1736517226188,2.9787,186.7,186.57,31.95061864]
[1736517226489,34.92931864,186.7,186.54,31.95061864]
[1736517227090,2.679,186.65,186.58,2.6798]
[1736517227281,31.95061864,186.67,186.51,31.95061864]
[1736517227482,34.92931864,186.7,186.54,31.95061864]
[1736517227889,2.6791,186.64,186.54,31.95061864]
[1736517228085,34.92931864,186.7,186.54,31.95061864]
[1736517228484,34.92931864,186.7,186.51,31.95061864]
[1736517228684,31.95061864,186.61,186.46,8.3707]
[1736517228891,39.51061864,186.64,186.48,31.95061864]
[1736517229194,31.95061864,186.7,186.51,31.95061864]
[1736517229389,31.95061864,186.7,186.55,31.95061864]
[1736517229691,10.3158,186.71,186.55,31.95061864]
[1736517229895,10.3158,186.71,186.52,31.95061864]
[1736517230595,31.95061864,186.67,186.49,7.56]
[1736517230792,31.95061864,186.67,186.52,31.95061864]
[1736517231295,31.95061864,186.7,186.52,31.95061864]
[1736517231697,2.6793,186.63,186.56,2.6801]
[1736517231900,31.95061864,186.7,186.52,31.95061864]
[1736517232294,31.95061864,186.7,186.55,31.95061864]
[1736517232494,10.3158,186.71,186.55,31.95061864]
[1736517232694,31.95061864,186.67,186.49,7.56]
[1736517233196,2.6793,186.63,186.54,2.6804]
[1736517233393,2.6793,186.63,186.49,7.56]
[1736517233596,31.95061864,186.67,186.49,7.56]
[1736517233799,31.95061864,186.67,186.53,31.95061864]
[1736517233995,2.6791,186.64,186.57,2.68]
[1736517234195,31.95061864,186.7,186.53,31.95061864]
[1736517234404,2.7558,186.71,186.56,31.95061864]
[1736517234598,2.6783,186.69,186.62,2.6793]
[1736517235099,5.434,186.71,186.56,31.95061864]
[1736517235300,2.7558,186.71,186.59,31.95061864]
[1736517235701,31.95061864,186.76,186.62,31.95061864]
[1736517235999,7.54,186.81,186.65,31.95061864]
[1736517236199,83.25359226,186.82,186.68,31.95061864]
[1736517236405,83.25359226,186.82,186.74,31.95061864]
[1736517236607,83.25359226,186.89,186.74,31.95061864]
[1736517237201,85.92919226,186.89,186.77,31.95061864]
[1736517237399,83.25359226,186.89,186.77,31.95061864]
[1736517237705,31.95061864,186.93,186.77,31.95061864]
[1736517237902,83.25359226,186.94,186.8,31.95061864]
[1736517238303,85.92849226,186.94,186.8,31.95061864]
[1736517238503,83.25359226,186.94,186.8,31.95061864]
[1736517238708,2.6752,186.91,186.81,2.6765]
[1736517239003,31.95061864,186.93,186.77,31.95061864]
[1736517239408,2.6752,186.91,186.8,31.95061864]
[1736517239803,34.92481864,186.96,186.8,31.95061864]
[1736517240003,2.6752,186.91,186.82,2.6763]
[1736517240308,31.95061864,186.93,186.77,31.95061864]
[1736517240505,34.92481864,186.96,186.77,31.95061864]
[1736517241202,2.6754,186.9,186.83,2.6763]
[1736517241402,34.92481864,186.96,186.8,31.95061864]
[1736517241607,31.95061864,186.93,186.77,31.95061864]
[1736517242209,31.95061864,186.93,186.71,83.6]
[1736517242210,31.95061864,186.9,186.74,31.95061864]
[1736517242400,2.9742,186.96,186.71,115.55061864]
[1736517242401,31.95061864,186.87,186.71,115.55061864]
[1736517242601,2.8459,186.86,186.71,115.55061864]
[1736517242802,2.676,186.85,186.78,2.677]
[1736517243204,5.6492,186.89,186.74,31.95061864]
[1736517243407,5.6492,186.89,186.8,2.6766]
[1736517243408,2.6757,186.88,186.8,2.6766]
[1736517243611,5.6492,186.89,186.74,31.95061864]
[1736517243814,5.6492,186.89,186.71,115.55061864]
[1736517244011,31.95061864,186.87,186.71,115.55061864]
[1736517244310,39.49061864,186.87,186.71,115.55061864]
[1736517244515,2.7899,186.86,186.72,2.6778]
[1736517244717,2.7899,186.86,186.63,64.66194811]
[1736517244718,31.95061864,186.84,186.63,64.66194811]
[1736517244906,2.6768,186.8,186.73,2.6776]
[1736517245416,2.7899,186.86,186.77,31.95061864]
[1736517245609,5.6492,186.89,186.77,31.95061864]
[1736517246012,2.6757,186.88,186.82,2.6764]
[1736517246211,5.6492,186.89,186.77,31.95061864]
[1736517246517,5.6492,186.89,186.83,2.6762]
[1736517246711,2.7899,186.91,186.8,31.95061864]
[1736517246910,5.6437,186.97,186.8,31.95061864]
[1736517247113,8.4336,186.97,186.83,31.95061864]
[1736517247712,2.6746,186.95,186.88,2.6756]
[1736517247916,2.6746,186.95,186.83,31.95061864]
[1736517248114,2.6748,186.94,186.87,2.6757]
[1736517248311,8.4336,186.97,186.8,31.95061864]
[1736517248511,8.4336,186.97,186.83,31.95061864]
[1736517248916,8.4336,186.97,186.84,3.0004]
[1736517249107,2.7899,186.97,186.86,31.95061864]
[1736517249306,31.95061864,187.04,186.86,31.95061864]
[1736517249307,2.6743,186.98,186.86,31.95061864]
[1736517249511,2.7689,187.02,186.89,31.95061864]
[1736517249707,2.6742,186.99,186.92,2.675]
[1736517249913,2.7689,187.02,186.85,5.6607]
[1736517250211,2.6743,186.97,186.85,5.6607]
[1736517250413,2.7689,187.02,186.85,5.6607]
[1736517250618,2.7689,187.02,186.9,31.95061864]
[1736517250817,2.7689,187.02,186.87,31.95061864]
[1736517251016,31.95061864,187.01,186.85,5.6607]
[1736517251212,31.95061864,187.01,186.87,31.95061864]
[1736517251407,2.7689,187.02,186.87,31.95061864]
[1736517251613,2.7689,187.02,186.9,31.95061864]
[1736517252014,31.95061864,187.01,186.85,5.6607]
[1736517252413,2.7392,187.0,186.87,31.95061864]
[1736517252613,2.7392,187.0,186.9,31.95061864]
[1736517252817,5.4131,187.0,186.94,2.6747]
[1736517253019,2.7392,187.0,186.9,31.95061864]
[1736517253721,2.7392,187.0,186.87,31.95061864]
[1736517254110,2.675,186.93,186.87,31.95061864]
[1736517254311,2.7392,187.0,186.84,34.95101864]
[1736517254915,2.7392,187.0,186.87,31.95061864]
[1736517256214,2.7392,187.0,186.9,31.95061864]
[1736517256612,2.7392,187.0,186.87,31.95061864]
[1736517256920,2.6751,186.92,186.85,2.676]
[1736517257220,2.6751,186.92,186.78,5.5544]
[1736517257221,7.52,186.93,186.78,5.5544]
[1736517257419,2.6761,186.85,186.79,2.6769]
[1736517257611,2.7258,186.92,186.8,31.95061864]
[1736517258016,2.7258,186.92,186.83,31.95061864]
[1736517258515,5.401,186.92,186.86,2.6758]
[1736517258714,2.7392,187.0,186.86,31.95061864]
[1736517259016,2.7392,187.0,186.78,7.52]
[1736517259017,2.7392,187.0,186.89,31.95061864]
[1736517259623,5.3996,187.01,186.95,2.6745]
[1736517259925,7.52,187.06,186.92,31.95061864]
[1736517260117,2.6734,187.04,186.98,2.6742]
[1736517260318,7.52,187.06,186.95,31.95061864]
[1736517260722,5.795,187.07,186.95,31.95061864]
[1736517261218,3.0078,187.09,186.95,31.95061864]
[1736517261423,2.673,187.07,186.99,2.674]
[1736517261620,2.673,187.07,186.98,31.95061864]
[1736517261621,3.0078,187.09,186.98,31.95061864]
[1736517261820,3.0078,187.09,186.95,31.95061864]
[1736517262221,497.5835391,187.26,187.01,31.95061864]
[1736517262524,2.6723,187.11,187.01,31.95061864]
[1736517262726,5.4754,187.15,187.01,31.95061864]
[1736517263022,2.6725,187.1,187.03,2.6735]
[1736517263216,5.4754,187.15,187.01,31.95061864]
[1736517263415,5.4754,187.15,187.04,31.95061864]
[1736517263613,5.4754,187.15,187.01,34.62431864]
[1736517263816,5.4754,187.15,187.01,31.95061864]
[1736517264219,2.673,187.07,187.01,31.95061864]
[1736517264423,31.95061864,187.14,186.98,31.95061864]
[1736517264623,31.95061864,187.14,186.96,5.9501]
[1736517264923,5.4754,187.15,187.02,2.6736]
[1736517265128,5.4754,187.15,187.01,31.95061864]
[1736517266320,2.6729,187.07,187.01,31.95061864]
[1736517266915,2.673,187.06,187.01,31.95061864]
[1736517267316,5.4754,187.15,187.01,31.95061864]
[1736517267521,2.6732,187.06,187.01,31.95061864]
[1736517268028,31.95061864,187.14,186.98,31.95061864]
[1736517268423,5.4754,187.15,187.02,2.6735]
[1736517270024,2.6733,187.04,186.98,31.95061864]
[1736517270223,31.95061864,187.14,186.96,8.8559]
[1736517270425,31.95061864,187.14,186.98,31.95061864]
[1736517270736,2.6732,187.06,186.98,31.95061864]
[1736517271025,31.95061864,187.17,187.05,2.6731]
[1736517271227,31.95061864,187.2,187.05,2.6731]
[1736517271625,2.6724,187.11,187.05,2.6731]
[1736517272332,2.6721,187.13,187.07,2.6728]
[1736517272526,5.6446,187.21,187.07,31.95061864]
[1736517273429,5.6446,187.21,187.1,31.95061864]
[1736517274028,2.6716,187.17,187.11,2.6723]
[1736517274333,5.6446,187.21,187.1,31.95061864]
[1736517274625,2.6714,187.18,187.12,2.6721]
[1736517274827,5.6446,187.21,187.1,31.95061864]
[1736517275425,31.95061864,187.27,187.13,31.95061864]
[1736517276435,31.95061864,187.27,187.05,2.7988]
[1736517276436,31.95061864,187.24,187.1,31.95061864]
[1736517276823,2.6713,187.19,187.13,2.6719]
[1736517277030,5.7437,187.3,187.13,31.95061864]
[1736517277230,31.95061864,187.29,187.13,31.95061864]
[1736517277631,2.6711,187.2,187.14,2.6718]
[1736517277935,31.95061864,187.29,187.13,31.95061864]
[1736517278135,2.6714,187.18,187.13,31.95061864]
[1736517278337,31.95061864,187.26,187.1,31.95061864]
[1736517278628,31.95061864,187.23,187.07,31.95061864]
[1736517279132,31.95061864,187.23,187.1,31.95061864]
[1736517279323,31.95061864,187.29,187.13,31.95061864]
[1736517279528,2.6704,187.25,187.16,2.6715]
[1736517279735,5.7437,187.3,187.16,31.95061864]
[1736517280136,5.7437,187.3,187.18,2.6713]
[1736517280336,5.7437,187.3,187.16,31.95061864]
[1736517280534,31.95061864,187.29,187.14,8.5642]
[1736517280733,2.671,187.21,187.15,2.6717]
[1736517280932,13.2437,187.3,187.14,8.5642]
[1736517281131,13.2437,187.3,187.18,31.95061864]
[1736517281329,2.6702,187.27,187.21,2.6708]
[1736517281533,2.6702,187.27,187.18,31.95061864]
[1736517281829,2.7631,187.31,187.18,31.95061864]
[1736517282035,5.8221,187.37,187.24,31.95061864]
[1736517282238,8.6217,187.37,187.24,31.95061864]
[1736517282839,8.6217,187.37,187.26,2.6701]
[1736517283028,5.8221,187.37,187.27,31.95061864]
[1736517283234,83.25359226,187.41,187.27,31.95061864]
[1736517283435,2.6689,187.36,187.29,2.6698]
[1736517283740,31.95061864,187.41,187.26,5.8188]
[1736517283929,2.6687,187.37,187.26,5.8188]
[1736517284134,31.95061864,187.41,187.26,5.8188]
[1736517284836,31.95061864,187.41,187.25,5.399]
[1736517285039,31.95061864,187.35,187.21,2.9259]
[1736517285236,2.6703,187.26,187.17,31.95061864]
[1736517285437,31.95061864,187.32,187.21,2.6708]
[1736517285731,2.67,187.28,187.17,31.95061864]